Cogmind - Beta 12 @@@ ROGUE MODE // 2023.03.07 @ 10:40:24 Player: ktur Result: Destroyed by G-47 Trooper with Particle Gun Performance ------------- Evolutions (3) 1500 Regions Visited (14) 2800 Robots Destroyed (202) 1010 Value Destroyed (7103) 7103 Prototype IDs (48) 960 Alien Tech Used (0) 0 Bonus (3082) 3082 TOTAL SCORE: 16455 Bonus ------- High Alert Combat Kills 682 Entered Garrisons 600 Used RIF Installer 1500 Aligned with FarCom 300 Cogmind --------- Core Integrity 0/700 Matter 294/300 Energy 290/290 System Corruption 38% Temperature Cool (9) Movement Walking (170) Ox1 Location -7/Garrison Parts ------- > --- POWER (1) -------- Improved Deuterium Engine > --- PROPULSION (4) --- Potential Leg Potential Leg > --- UTILITY (6) ------ Improved Coolant Injector Huge Storage Unit Transport Network Coupler Improved Light Armor Plating Hacking Suite Relay Coupler [Grunt] (26) > --- WEAPON (2) ------- Longsword +1 > --- INVENTORY (25) --- Light Nuclear Core High-capacity Matter Pod (91) Advanced ECM Suite Improved Light Armor Plating Hacking Suite Hacking Suite Advanced System Shield Relay Coupler [NC] (31) Relay Coupler [NC] (29) Relay Coupler [NC] (31) Relay Coupler [Swarmer] (36) Relay Coupler [Duelist] (28) Relay Coupler [Hunter] (16) Heavy Assault Cannon Hypervelocity Gauss Cannon Rocket Launcher Datajack Improved Remote Datajack Improved Plasma Cutter Improved Plasma Cutter EM Surge Trap EM Surge Trap EM Surge Trap Peak State ------------ > --- POWER ------------ Cooled Ion Engine > --- PROPULSION ------- Armored Treads Armored Treads Improved Heavy Treads > --- UTILITY ---------- Improved Coolant Injector Huge Storage Unit Transport Network Coupler ECM Suite Improved Focal Shield Hacking Suite > --- WEAPON ----------- Heavy EM Shotgun KE Penetrator > --- INVENTORY -------- Light Nuclear Core Potential Leg Potential Leg VTOL Module High-capacity Matter Pod Hacking Suite Hacking Suite Advanced System Shield Relay Coupler [NC] Relay Coupler [NC] Relay Coupler [NC] Relay Coupler [Swarmer] Relay Coupler [Grunt] Relay Coupler [Duelist] Relay Coupler [Hunter] Hypervelocity Gauss Cannon Grenade Launcher Datajack Improved Remote Datajack Improved Plasma Cutter Improved Plasma Cutter Longsword +1 EM Surge Trap EM Surge Trap [Rating: 60] Favorites ----------- Power Cooled Ion Engine Engine Cooled Ion Engine Power Core Light Nuclear Core Propulsion Light Treads Treads Light Treads Leg Potential Leg Utility Huge Storage Unit Device Disposable Heat Sink Storage Huge Storage Unit Processor Transport Network Coupler Hackware Hacking Suite Protection Hardened Medium Armor Plating Weapon Heavy EM Shotgun Energy Gun Heavy EM Shotgun Energy Cannon Improved EM Pulse Cannon Ballistic Gun Light Assault Rifle Ballistic Cannon Heavy Assault Cannon Launcher Grenade Launcher Special Weapon Improved Remote Datajack Impact Weapon Flail Slashing Weapon Longsword +1 Special Melee Weapon Datajack Build | -11 -10 -10 -9 -9 -9 -8 -8 -8 -7 -7 -7 -7 -7 -7 ------- Run | Jun Mat Min Mat Min Exi Min Mat Gar Fac Was Fac Gar Fac Gar Slots Evolved 6 | . . . 2 . . . 2 . 2 . . . . . Power . | . . . . . . . . . . . . . . . Propulsion 2 | . . . 1 . . . 1 . . . . . . . Utility 4 | . . . 1 . . . 1 . 2 . . . . . Weapon . | . . . . . . . . . . . . . . . Parts Attached 158 | 6 6 3 37 . 6 3 30 23 4 2 4 19 13 2 Power 18 | 1 2 . 4 . 2 . 1 1 . . . 2 5 . Engine 14 | 1 2 . 4 . 2 . 1 1 . . . 1 2 . Core 4 | . . . . . . . . . . . . 1 3 . Reactor . | . . . . . . . . . . . . . . . Propulsion 35 | 2 1 . 13 . 2 . 5 4 1 . 1 3 3 . Treads 33 | 2 1 . 13 . 2 . 5 4 1 . 1 3 1 . Leg 2 | . . . . . . . . . . . . . 2 . Wheel . | . . . . . . . . . . . . . . . Hover . | . . . . . . . . . . . . . . . Flight . | . . . . . . . . . . . . . . . Utility 34 | 1 2 1 8 . . 1 5 7 2 . . 4 2 1 Device 14 | . . . 4 . . 1 1 4 . . . 3 1 . Storage 8 | 1 1 1 1 . . . 2 1 . . . . 1 . Processor 2 | . 1 . . . . . . . 1 . . . . . Hackware 3 | . . . . . . . . 1 1 . . 1 . . Protection 7 | . . . 3 . . . 2 1 . . . . . 1 Artifact . | . . . . . . . . . . . . . . . Weapon 71 | 2 1 2 12 . 2 2 19 11 1 2 3 10 3 1 Energy Gun 24 | 1 . 1 4 . . 2 10 5 . . . 1 . . Energy Cannon 3 | . . . . . . . . . . . . 3 . . Ballistic Gun 26 | 1 . 1 7 . . . 8 5 . . 2 2 . . Ballistic Cannon 6 | . 1 . 1 . . . . . . . . 2 2 . Launcher 4 | . . . . . . . 1 . . . . 2 1 . Special Weapon 2 | . . . . . . . . . . 2 . . . . Impact Weapon 1 | . . . . . 1 . . . . . . . . . Slashing Weapon 3 | . . . . . . . . . 1 . 1 . . 1 Piercing Weapon . | . . . . . . . . . . . . . . . Special Melee Weapon 2 | . . . . . 1 . . 1 . . . . . . Unidentified Prototypes 6 | . . . 3 . . . 1 1 . . . . 1 . Corrupted Parts 1 | . . . . . . . . . . . . 1 . . System Corruption 1 | . . . . . . . . . . . . 1 . . Parts Lost 27 | . . 1 2 . . 1 4 5 . . . 10 4 . Power 3 | . . . . . . . . 1 . . . 2 . . Propulsion 10 | . . . 1 . . . . 2 . . . 4 3 . Utility 8 | . . 1 . . . 1 3 1 . . . 2 . . Weapon 6 | . . . 1 . . . 1 1 . . . 2 1 . Highest Loss Streak 3 | . . 1 2 . . 1 2 3 . . . 3 2 . To Critical Strikes 1 | . . . . . . . 1 . . . . . . . Average Slot Usage (%) 94 | . 98 99 94 100 99 94 96 93 94 100 100 91 82 76 Engine 9 | . 14 14 11 11 11 11 9 8 7 7 7 6 4 7 Treads 29 | . 28 28 32 33 32 33 36 35 30 30 30 24 19 . Device 10 | . . . 8 11 11 11 13 17 7 7 7 18 15 7 Storage 10 | . 14 25 11 11 11 11 12 9 7 7 7 7 7 7 Processor 4 | . 12 2 . . . . . . 6 7 7 7 7 7 Hackware 4 | . . . . . . . . 2 9 15 15 8 15 15 Protection 4 | . . . 8 11 11 5 6 1 7 7 7 2 . 6 Energy Gun 6 | . 10 13 4 . . 21 11 15 . . . 1 . . Ballistic Gun 8 | . 14 14 16 22 . . 6 1 10 7 14 6 . . Ballistic Cannon 1 | . 3 . . . . . . . . . . . 6 1 Naked Turns . | . . . . . . . . . . . . . . . Heaviest Build 110 | 11 29 32 64 62 59 64 103 106 106 107 107 110 106 106 Greatest Support 123 | 40 40 40 60 60 60 60 80 80 80 80 80 115 123 60 Greatest Overweight (x) 3 | . . . 1 1 1 1 1 1 1 1 1 2 3 1 Average Overweight (x) . | . . . . 1 . . . 1 1 1 1 . . 1 Largest Inventory Capacity 25 | 8 15 15 20 20 20 20 25 25 25 25 25 25 25 25 Average Capacity 21 | 7 13 15 18 20 20 20 21 25 25 25 25 25 25 25 Most Carried 25 | 6 15 15 20 20 20 20 25 25 25 25 25 25 25 25 Average Carried 20 | 2 12 14 17 20 19 20 20 24 24 25 24 24 24 22 Final Capacity 25 | 8 15 15 20 20 20 20 25 25 25 25 25 25 25 25 Final Carried 25 | 6 15 15 20 20 20 20 25 25 25 25 25 25 20 24 Class Distribution -------------------- 44% | Mutant 38% | Bothacker-Mutant 16% | Scavenger-Mutant Dominant Class ---------------- Mutant | -10/Materials Mutant | -10/Mines Scavenger-Mutant | -9/Materials Scavenger-Mutant | -9/Mines Mutant | -9/Exiles Mutant | -8/Mines Mutant | -8/Materials Mutant | -8/Garrison Bothacker-Mutant | -7/Factory Bothacker-Mutant | -7/Waste Bothacker-Mutant | -7/Factory Bothacker-Mutant | -7/Garrison Bothacker-Mutant | -7/Factory Bothacker-Mutant | -7/Garrison Resources | -11 -10 -10 -9 -9 -9 -8 -8 -8 -7 -7 -7 -7 -7 -7 ----------- Run | Jun Mat Min Mat Min Exi Min Mat Gar Fac Was Fac Gar Fac Gar Matter Collected 4695 | 193 350 37 1056 96 . 90 500 328 141 . 200 933 599 172 Remotely . | . . . . . . . . . . . . . . . Salvage Created 8257 | . 819 80 1747 197 . 546 1388 1202 320 350 . 1087 349 172 Parts 451 | . 61 9 101 10 . 17 77 60 23 10 . 52 16 15 Haulers Intercepted 16 | . 2 . 5 . . . 3 1 4 . . . 1 . Recyclers Shooed 12 | . 1 1 4 . . 1 3 . . . . . 2 . Parts Field Recycled . | . . . . . . . . . . . . . . . Retrieved Matter . | . . . . . . . . . . . . . . . Parts Self-Destructed . | . . . . . . . . . . . . . . . Prevented . | . . . . . . . . . . . . . . . Kills | -11 -10 -10 -9 -9 -9 -8 -8 -8 -7 -7 -7 -7 -7 -7 ------- Run | Jun Mat Min Mat Min Exi Min Mat Gar Fac Was Fac Gar Fac Gar Combat Hostiles Destroyed 158 | . 19 6 30 4 . 9 24 23 1 1 . 28 10 3 Melee 3 | . . . . . . . . . . . . . . 3 Guns 91 | . 14 6 26 4 . 2 16 17 1 1 . 4 . . Cannons 27 | . 5 . 4 . . . . . . . . 11 7 . AOE 31 | . . . . . . 6 6 4 . . . 12 3 . Classes Destroyed 16 | . 7 . 4 . . . 1 2 . 1 . . 1 . Worker 4 | . . . 2 . . . . . 1 . . . 1 . Builder 4 | . 1 . . . . . 2 . 1 . . . . . Hauler 16 | . 2 . 5 . . . 3 1 4 . . . 1 . Recycler 9 | . 1 . 5 . . 1 2 . . . . . . . Operator 4 | . 2 . 1 . . . 1 . . . . . . . Watcher 7 | . 2 . 3 . . . . 1 1 . . . . . Swarmer 48 | . 6 6 6 . . . 8 6 . . . 13 . 3 Grunt 75 | . 13 . 16 4 . 8 10 7 . . . 13 4 . Brawler 2 | . . . 1 . . 1 . . . . . . . . Duelist 2 | . . . 1 . . . . . . . . 1 . . Protector 1 | . . . . . . . . . . . . . 1 . Sentry 18 | . . . 6 . . . 5 4 . . . 1 2 . Specialist 2 | . . . . . . . . 2 . . . . . . Hunter 4 | . . . . . . . 1 1 . . . . 2 . Programmer 5 | . . . . . . . . 3 1 . . . 1 . Compactor 1 | . . . . . . . . . . 1 . . . . Best Kill Streak 10 | . 5 3 10 2 . 4 5 4 4 1 . 8 4 3 Combat Bots Only 8 | . 3 3 7 2 . 4 4 4 1 1 . 8 4 3 Max Kills in Single Turn 2 | . 2 1 2 1 . 2 2 2 1 1 . 2 2 1 Gunslinging 1 | . . . 1 . . . 1 1 . . . . . . Exploded 2 | . . . . . . 2 2 2 . . . 2 2 . Melee 1 | . . . . . . . . . . . . . . 1 Uniques/NPCs Destroyed . | . . . . . . . . . . . . . . . Combat | -11 -10 -10 -9 -9 -9 -8 -8 -8 -7 -7 -7 -7 -7 -7 -------- Run | Jun Mat Min Mat Min Exi Min Mat Gar Fac Was Fac Gar Fac Gar Damage Taken 9246 | . 447 127 1341 288 . 342 1063 1286 338 . 131 2041 1453 389 Core 1402 | . 107 22 160 97 . 33 90 187 171 . 3 229 143 160 Absorbed by Shields 118 | . . . . . . . 9 109 . . . . . . Regen/Repaired (Parts) 1043 | . . . 540 . . . 51 . 452 . . . . . Core Remaining (%) 56 | 100 . 48 . . . 27 . 49 . . . . . . Volleys Fired 580 | . 62 12 150 16 . 18 73 60 24 32 2 94 36 1 Largest 2 | . 2 2 2 2 . 2 2 2 2 2 2 2 1 1 Hottest 100 | . 70 70 79 46 . 100 100 100 58 53 61 97 60 60 Shots Fired 949 | . 107 24 272 32 . 27 143 118 30 42 4 112 37 1 Gun 784 | . 98 24 244 32 . 27 140 118 30 23 4 44 . . Cannon 130 | . 9 . 28 . . . . . . . . 58 34 1 Launcher 16 | . . . . . . . 3 . . . . 10 3 . Special 19 | . . . . . . . . . . 19 . . . . Kinetic 565 | . 62 12 215 32 . . 62 35 30 23 4 55 34 1 Thermal 125 | . 45 12 57 . . . . . . 11 . . . . Explosive 16 | . . . . . . . 3 . . . . 10 3 . Electromagnetic 235 | . . . . . . 27 78 83 . . . 47 . . Robot Hit Streak 22 | . 12 19 22 15 . 9 17 12 5 12 3 12 6 . Robot Miss Streak 6 | . 3 3 4 3 . 5 6 3 4 1 1 4 2 . Penetration Max 1 | . . . . . . . . . 1 . . 1 . . Secondary Targets 14 | . 3 1 3 1 . . 3 3 . . . . . . Max Gunslinging Chain 1 | . 1 1 1 1 . . 1 1 . . . . . . Shots Hit Robots 678 | . 76 15 192 26 4 22 103 94 13 37 3 63 21 9 Core Hits 351 | . 42 7 72 8 . 20 55 50 8 7 . 58 19 5 Critical Kills 4 | . 1 . . . . . . . . . . 3 . . Critical Parts Destroyed 8 | . . . 2 . . . 1 1 . . . 4 . . Critical Strikes 29 | . 5 . 8 . . . 1 1 . 1 . 8 3 2 Burn 8 | . 4 . 4 . . . . . . . . . . . Destroy 13 | . 1 . 2 . . . 1 1 . 1 . 7 . . Blast 5 | . . . 2 . . . . . . . . . 3 . Corrupt 1 | . . . . . . . . . . . . 1 . . Sever 2 | . . . . . . . . . . . . . . 2 Melee Attacks 30 | . . . . . 4 . . . 2 . 2 . . 22 Impact . | . . . . . . . . . . . . . . . Slashing 26 | . . . . . . . . . 2 . 2 . . 22 Piercing . | . . . . . . . . . . . . . . . Sneak Attacks 4 | . . . . . 4 . . . . . . . . . Combat Hostiles . | . . . . . . . . . . . . . . . Follow-up Attacks . | . . . . . . . . . . . . . . . Damage Inflicted 15214 | . 936 186 2626 394 . 1061 2302 2390 387 661 64 2168 1513 526 Guns 9299 | . 734 177 2200 384 . 457 1865 1972 362 505 64 579 . . Cannons 2301 | . 154 . 381 . . . . . . . . 792 974 . Explosions 2738 | . . . . . . 565 431 418 . . . 794 530 . Melee 526 | . . . . . . . . . . . . . . 526 Ramming 194 | . 48 9 45 10 . 39 6 . 25 . . 3 9 . Kinetic 6342 | . 403 46 1821 384 . . 555 619 362 505 64 609 974 . Thermal 2732 | . 485 131 760 . . 565 217 418 . 156 . . . . Explosive 1538 | . . . . . . . 214 . . . . 794 530 . Electromagnetic 3882 | . . . . . . 457 1310 1353 . . . 762 . . Impact . | . . . . . . . . . . . . . . . Slashing 526 | . . . . . . . . . . . . . . 526 Piercing . | . . . . . . . . . . . . . . . Highest Corruption 38 | . . . 2 2 2 2 . 4 . 34 34 35 38 38 Average Corruption 22 | . . . 2 2 2 2 . 2 . 20 34 34 35 38 Corruption Purged . | . . . . . . . . . . . . . . . Corruption Blocked . | . . . . . . . . . . . . . . . Effects 217 | . . . 5 . 9 6 . 5 . 17 12 95 56 12 Message Errors 44 | . . . 1 . 4 4 . 1 . 4 . 13 13 4 Matter Fused 56 | . . . 2 . 1 . . 2 . 3 5 29 12 2 Heat Flow Errors 28 | . . . 2 . 1 1 . 1 . 3 1 13 6 . Energy Discharges 20 | . . . . . 1 1 . . . 1 3 5 7 2 Parts Rejected 3 | . . . . . . . . 1 . . 1 1 . . Parts Fused 4 | . . . . . 1 . . . . . . 2 1 . Data Loss (minor) 22 | . . . . . . . . . . 3 1 9 7 2 Data Loss (major) 9 | . . . . . . . . . . . . 6 2 1 Misfires 7 | . . . . . . . . . . 1 . 3 3 . Alerts 5 | . . . . . 1 . . . . . 1 2 1 . Misdirections 4 | . . . . . . . . . . . . 1 2 1 Weapon Failures 15 | . . . . . . . . . . 2 . 11 2 . Overload Shots . | . . . . . . . . . . . . . . . Overflow Damage 111 | . . . . . . . . 17 . . . 13 56 25 Projectiles 52 | . . . . . . . . . . . . . 52 . Explosions 34 | . . . . . . . . 17 . . . 13 4 . Melee 25 | . . . . . . . . . . . . . . 25 Knockbacks 25 | . 5 . 12 . . . . . . . . 3 5 . Impact 2 | . 1 . 1 . . . . . . . . . . . Kinetic 21 | . 3 . 11 . . . . . . . . 3 4 . Secondary 2 | . 1 . . . . . . . . . . . 1 . Self-Inflicted Damage 253 | . . . . . . 48 19 82 . . . 40 64 . Shots 9 | . . . . . . 2 1 2 . . . 1 3 . Rammed 31 | . 15 2 4 1 . 3 3 . 1 . . 1 1 . Targets Rammed 36 | . 16 2 6 1 . 4 3 . 1 . . 1 2 . Kicked 1 | . . . . . . . . . . . . . 1 . Crushed 4 | . 1 . 2 . . 1 . . . . . . . . Highest Temperature 246 | . 192 110 198 18 175 195 198 195 6 233 216 246 216 10 Average Temperature 61 | . 59 45 56 6 89 94 78 56 4 102 99 55 55 6 Received Heat Transfer 2975 | . 150 . 417 162 . 135 450 362 . . 54 654 528 63 Effects 1 | . . . . . . . . . . . . . 1 . Energy Bleed 1 | . . . . . . . . . . . . . 1 . Siege Activations . | . . . . . . . . . . . . . . . Robots Corrupted 7 | . . . . . . 1 2 3 . . . 1 . . Combat Hostiles 6 | . . . . . . 1 2 2 . . . 1 . . Parts Fried 26 | . . . . . . 2 7 13 . . . 4 . . Impact Corruptions . | . . . . . . . . . . . . . . . Robots Melted . | . . . . . . . . . . . . . . . Combat Hostiles . | . . . . . . . . . . . . . . . Parts Melted 12 | . 3 3 4 . . . . 2 . . . . . . Heat Transferred 5690 | . 1702 370 1998 . . 600 300 350 . 370 . . . . Parts Sabotaged . | . . . . . . . . . . . . . . . Parts Stolen . | . . . . . . . . . . . . . . . Parts Stripped . | . . . . . . . . . . . . . . . Power Chain Reactions 17 | . . . . . . 7 5 5 . . . . . . Missiles Intercepted . | . . . . . . . . . . . . . . . Alert | -11 -10 -10 -9 -9 -9 -8 -8 -8 -7 -7 -7 -7 -7 -7 ------- Run | Jun Mat Min Mat Min Exi Min Mat Gar Fac Was Fac Gar Fac Gar Peak Influence 1124 | . 311 239 503 271 . 252 299 1124 635 92 66 1093 573 563 Initial 590 | . . 94 92 171 . . 20 194 590 92 64 46 573 393 Average 336 | . 148 180 235 244 . 116 97 583 446 92 64 593 511 496 Maximum Alert Level 4 | . 1 1 2 1 . 1 1 4 2 . . 3 2 2 Low Security (%) 39 | 100 69 56 47 16 . 78 90 11 . 100 100 9 . . Level 1 25 | . 30 43 41 83 . 21 9 24 43 . . 10 6 5 Level 2 26 | . . . 10 . . . . 27 56 . . 46 93 94 Level 3 8 | . . . . . . . . 28 . . . 33 . . Level 4 1 | . . . . . . . . 8 . . . . . . Level 5 . | . . . . . . . . . . . . . . . High Security . | . . . . . . . . . . . . . . . Max Security . | . . . . . . . . . . . . . . . Squads Dispatched 19 | . 4 . 5 . . . 4 . 1 . 1 . 4 . Investigation 7 | . 2 . 3 . . . . . . . 1 . 1 . Extermination 2 | . . . . . . . . . 1 . . . 1 . Reinforcement 8 | . 2 . 2 . . . 3 . . . . . 1 . Assault 1 | . . . . . . . . . . . . . 1 . Garrison 1 | . . . . . . . 1 . . . . . . . Intercept . | . . . . . . . . . . . . . . . Searches Triggered . | . . . . . . . . . . . . . . . Construction Impeded 1 | . . . . . . . 1 . . . . . . . Haulers Reinforced . | . . . . . . . . . . . . . . . Active Scanning Responses . | . . . . . . . . . . . . . . . Cargo Convoy Interrupts 1 | . . . . . . . . . . . . . 1 . Stealth | -11 -10 -10 -9 -9 -9 -8 -8 -8 -7 -7 -7 -7 -7 -7 --------- Run | Jun Mat Min Mat Min Exi Min Mat Gar Fac Was Fac Gar Fac Gar Distress Signals 20 | . 5 1 9 . . . 3 1 . . 1 . . . Communications Jammed 4 | . . . . . . . . . . . 4 . . . Distress Signals 4 | . . . . . . . . . . . 4 . . . Times Spotted 231 | . 36 7 47 4 . 9 34 27 4 5 2 34 18 4 Peak Tracking Total 9 | . 5 3 5 2 . 3 5 5 1 2 2 9 6 3 Tactical Retreats 15 | . . 1 3 . . 1 1 3 . . . 4 2 . Traps | -11 -10 -10 -9 -9 -9 -8 -8 -8 -7 -7 -7 -7 -7 -7 ------- Run | Jun Mat Min Mat Min Exi Min Mat Gar Fac Was Fac Gar Fac Gar Traps Triggered 21 | . 1 . 2 . . . . 12 2 . . 3 . 1 Indirectly . | . . . . . . . . . . . . . . . Trap Hack Attempts 3 | . . . . . . . . 3 . . . . . . Triggered . | . . . . . . . . . . . . . . . Disarmed 1 | . . . . . . . . 1 . . . . . . Reprogrammed . | . . . . . . . . . . . . . . . Reused 2 | . . . . . . . . . . . . . 2 . Traps Extracted . | . . . . . . . . . . . . . . . Installed 3 | . . . . . . . . . . . . . 2 1 Triggered 2 | . . . . . . . . . . . . . 2 . Most Traps Carried 4 | . . . . . . . . . . . . 3 3 4 Machines | -11 -10 -10 -9 -9 -9 -8 -8 -8 -7 -7 -7 -7 -7 -7 ---------- Run | Jun Mat Min Mat Min Exi Min Mat Gar Fac Was Fac Gar Fac Gar Machines Disabled 21 | . . . 3 . . . 1 4 . . . 7 . 6 Max in Single Turn 1 | . . . 1 . . . 1 1 . . . 1 . 1 Garrison Relay 5 | . . . . . . . . 2 . . . 3 . . Machines Repaired . | . . . . . . . . . . . . . . . Machines Sabotaged . | . . . . . . . . . . . . . . . Overloaded Fab Kills . | . . . . . . . . . . . . . . . Hacking | -11 -10 -10 -9 -9 -9 -8 -8 -8 -7 -7 -7 -7 -7 -7 --------- Run | Jun Mat Min Mat Min Exi Min Mat Gar Fac Was Fac Gar Fac Gar Machines Accessed 37 | . 9 . 8 . 2 . 5 2 3 . 2 3 3 . Terminals 22 | . 6 . 4 . . . 3 2 2 . . 3 2 . Fabricators 1 | . . . . . . . . . . . 1 . . . Repair Stations 4 | . 1 . 1 . . . 1 . 1 . . . . . Recycling Units 4 | . 2 . 2 . . . . . . . . . . . Scanalyzers 1 | . . . 1 . . . . . . . . . . . Garrison Access 3 | . . . . . . . 1 . . . 1 . 1 . Total Hacks 104 | . 21 . 39 . 2 . 13 5 9 . 4 6 5 . Successful 60 | . 8 . 27 . 2 . 9 1 6 . 2 3 2 . Failed 44 | . 13 . 12 . . . 4 4 3 . 2 3 3 . Catastrophic 7 | . . . 4 . . . . 1 . . . 1 1 . Database Lockouts . | . . . . . . . . . . . . . . . Manual 36 | . 15 . 8 . 1 . 7 . 1 . 2 . 2 . Terminals 55 | . 15 . 10 . . . 10 5 5 . . 6 4 . Fabricators 3 | . . . . . . . . . . . 3 . . . Repair Stations 22 | . 3 . 13 . . . 2 . 4 . . . . . Recycling Units 5 | . 3 . 2 . . . . . . . . . . . Scanalyzers 14 | . . . 14 . . . . . . . . . . . Garrison Access 3 | . . . . . . . 1 . . . 1 . 1 . Terminal Hacks 18 | . 5 . 2 . 2 . 4 1 1 . . 3 . . Record 1 | . . . . . 1 . . . . . . . . . Part Schematic 4 | . 1 . 1 . . . 1 . 1 . . . . . Robot Analysis 3 | . 3 . . . . . . . . . . . . . Prototype ID Bank 3 | . 1 . . . . . 2 . . . . . . . Emergency Access Points 1 | . . . . . . . . . . . . 1 . . Alert Level 1 | . . . . . . . 1 . . . . . . . Unreport Threat 1 | . . . 1 . . . . . . . . . . . Garrison Registry 1 | . . . . . . . . . . . . 1 . . Patrol Navigation 1 | . . . . . . . . 1 . . . . . . Security Stations 1 | . . . . . . . . . . . . 1 . . EX-Prototype ID Bank 1 | . . . . . 1 . . . . . . . . . Fabricator Hacks 1 | . . . . . . . . . . . 1 . . . Load Schematic 1 | . . . . . . . . . . . 1 . . . Repair Station Hacks 17 | . 1 . 10 . . . 2 . 4 . . . . . Scan Component 9 | . 1 . 5 . . . 1 . 2 . . . . . Repair 8 | . . . 5 . . . 1 . 2 . . . . . Recycling Unit Hacks . | . . . . . . . . . . . . . . . Scanalyzer 13 | . . . 13 . . . . . . . . . . . Insert Component 6 | . . . 6 . . . . . . . . . . . Analyze 7 | . . . 7 . . . . . . . . . . . Garrison Access Hacks 3 | . . . . . . . 1 . . . 1 . 1 . Unlock Access 3 | . . . . . . . 1 . . . 1 . 1 . Unauthorized Hacks 8 | . 2 . 2 . . . 2 . 1 . . . 1 . Terminals 4 | . . . . . . . 2 . 1 . . . 1 . Botnet 4 | . . . . . . . 2 . 1 . . . 1 . Fabricators . | . . . . . . . . . . . . . . . Repair Stations . | . . . . . . . . . . . . . . . Recycling Units 4 | . 2 . 2 . . . . . . . . . . . Tunnel 4 | . 2 . 2 . . . . . . . . . . . Scanalyzers . | . . . . . . . . . . . . . . . Garrison Access . | . . . . . . . . . . . . . . . Data Cores Recovered . | . . . . . . . . . . . . . . . Used . | . . . . . . . . . . . . . . . Hacking Detections 28 | . 8 . 5 . . . 4 2 2 . 2 2 3 . Full Trace Events 6 | . . . . . . . . 2 . . 1 2 1 . Feedback Events . | . . . . . . . . . . . . . . . Feedback Blocked . | . . . . . . . . . . . . . . . Robot Schematics Acquired . | . . . . . . . . . . . . . . . Robots Built . | . . . . . . . . . . . . . . . Authchips . | . . . . . . . . . . . . . . . Time . | . . . . . . . . . . . . . . . Total Robot Build Rating . | . . . . . . . . . . . . . . . Part Schematics Acquired 10 | . 1 . 7 . . . 1 . 1 . . . . . Parts Built . | . . . . . . . . . . . . . . . Authchips . | . . . . . . . . . . . . . . . Time . | . . . . . . . . . . . . . . . Total Part Build Rating . | . . . . . . . . . . . . . . . Parts Repaired 8 | . . . 5 . . . 1 . 2 . . . . . Time 314 | . . . 130 . . . 60 . 124 . . . . . Parts Recycled . | . . . . . . . . . . . . . . . Recycled Matter . | . . . . . . . . . . . . . . . Retrieved Matter . | . . . . . . . . . . . . . . . Retrieved Components . | . . . . . . . . . . . . . . . Parts Scanalyzed 6 | . . . 6 . . . . . . . . . . . Part Schematics Acquired 6 | . . . 6 . . . . . . . . . . . Parts Damaged . | . . . . . . . . . . . . . . . Bothacking | -11 -10 -10 -9 -9 -9 -8 -8 -8 -7 -7 -7 -7 -7 -7 ------------ Run | Jun Mat Min Mat Min Exi Min Mat Gar Fac Was Fac Gar Fac Gar Used RIF Installer 3 | . . . . . . . . 2 . . . 1 . . Signal Jammer 1 | . . . . . . . . 1 . . . . . . Robot Detection 1 | . . . . . . . . . . . . 1 . . Robots Hacked 10 | . . . . . 4 . . . . 6 . . . . Non-combat 3 | . . . . . 3 . . . . . . . . . Combat 7 | . . . . . 1 . . . . 6 . . . . Robot Hacks Applied 12 | . . . . . 4 . . . . 8 . . . . parse_system 4 | . . . . . 4 . . . . . . . . . ignore_targets 8 | . . . . . . . . . . 8 . . . . Relay Couplers Released 19 | . . . . . . . . 8 . . . 11 . . Machine Destruction 19 | . . . . . . . . 8 . . . 11 . . Attached 2 | . . . . . . . . . 1 . . 1 . . Fabnet Peak Effective % . | . . . . . . . . . . . . . . . Robots Rewired . | . . . . . . . . . . . . . . . Allies Hacked . | . . . . . . . . . . . . . . . Hacks Repelled . | . . . . . . . . . . . . . . . Allies | -11 -10 -10 -9 -9 -9 -8 -8 -8 -7 -7 -7 -7 -7 -7 -------- Run | Jun Mat Min Mat Min Exi Min Mat Gar Fac Was Fac Gar Fac Gar Total Allies . | . . . . . . . . . . . . . . . Largest Group . | . . . . . . . . . . . . . . . Highest-Rated Group . | . . . . . . . . . . . . . . . Highest-Rated Ally . | . . . . . . . . . . . . . . . Total Orders . | . . . . . . . . . . . . . . . Ally Attacks . | . . . . . . . . . . . . . . . Total Damage . | . . . . . . . . . . . . . . . Kills . | . . . . . . . . . . . . . . . Allies Corrupted . | . . . . . . . . . . . . . . . Allies Melted . | . . . . . . . . . . . . . . . Intel | -11 -10 -10 -9 -9 -9 -8 -8 -8 -7 -7 -7 -7 -7 -7 ------- Run | Jun Mat Min Mat Min Exi Min Mat Gar Fac Was Fac Gar Fac Gar Robot Analysis Total 3 | . 3 . . . . . . . . . . . . . Derelict Logs Recovered 1 | . . 1 . . . . . . . . . . . . Drone Launches . | . . . . . . . . . . . . . . . Drone Recoveries . | . . . . . . . . . . . . . . . Exploration | -11 -10 -10 -9 -9 -9 -8 -8 -8 -7 -7 -7 -7 -7 -7 ------------- Run | Jun Mat Min Mat Min Exi Min Mat Gar Fac Was Fac Gar Fac Gar Turns Passed 13750 | 95 1704 355 2089 253 478 460 1490 1960 1409 379 236 1561 1095 186 Spaces Moved 5766 | 51 888 192 730 85 284 206 650 672 538 119 88 624 568 71 Core 1 | 1 . . . . . . . . . . . . . . Treads 5611 | 50 888 192 730 85 284 206 650 672 538 119 88 624 485 . Legs 154 | . . . . . . . . . . . . . 83 71 Wheels . | . . . . . . . . . . . . . . . Hover . | . . . . . . . . . . . . . . . Flight . | . . . . . . . . . . . . . . . Fastest Speed 50 | 50 160 160 160 240 160 160 162 242 247 247 247 163 125 170 Average Speed 195 | 157 160 160 196 240 162 193 173 245 247 247 247 205 160 170 Slowest Speed 400 | 160 160 160 240 240 240 240 242 247 247 247 247 330 400 170 Overloaded Moves 45 | . . . . . . . . . . . . . 45 . Propulsion Burnouts . | . . . . . . . . . . . . . . . Robots Hopped . | . . . . . . . . . . . . . . . Cave-ins Triggered . | . . . . . . . . . . . . . . . Exploration Rate (%) 42 | 6 98 40 58 17 71 33 49 68 9 76 4 84 16 10 Regions Visited 14 Branch Regions 4 Pre-discovered Areas 5 | . 2 . 2 . 1 . . . . . . . . . Known Exits Taken 3 | . . . . . . . 1 . . . 1 . 1 . Unknown Exits Taken 7 | 1 1 1 1 1 1 1 . . . . . . . . Scrap Searched . | . . . . . . . . . . . . . . . Spaces Dug 11 | . . . . . . . . . 3 . 2 . 6 . Terrain Destroyed 128 | . . . . . . 38 28 15 6 . 2 14 25 . Melee 4 | . . . . . . . . . 2 . 2 . . . Projectile 26 | . . . . . . . . . 4 . . 2 20 . AOE 98 | . . . . . . 38 28 15 . . . 12 5 . Terrain Rammed . | . . . . . . . . . . . . . . . Walls Destroyed . | . . . . . . . . . . . . . . . Machines Disabled . | . . . . . . . . . . . . . . . Actions | -11 -10 -10 -9 -9 -9 -8 -8 -8 -7 -7 -7 -7 -7 -7 --------- Run | Jun Mat Min Mat Min Exi Min Mat Gar Fac Was Fac Gar Fac Gar Total 7286 | 63 1070 217 1133 102 299 235 862 867 589 156 99 781 699 114 Wait 488 | . 71 7 149 1 . 5 85 62 12 4 1 24 57 10 Move 5754 | 50 887 191 729 84 283 205 650 670 538 118 88 622 568 71 Hop . | . . . . . . . . . . . . . . . Pick Up 110 | 7 17 1 30 . 3 . 10 15 5 . 1 10 6 5 Fast Attach 35 | 5 1 . 9 . . 1 5 4 1 . 1 5 3 . Attach 42 | 1 . 1 10 . 2 . 5 7 1 . . 8 6 1 Detach 4 | . . . 1 . . . 1 . . . . 1 1 . Swap 81 | . 5 2 18 . 4 2 20 12 2 2 3 6 4 1 Drop 93 | . 11 1 31 . 3 . 10 13 3 . 1 5 13 2 Fire 580 | . 62 12 150 16 . 18 73 60 24 32 2 94 36 1 Melee 30 | . . . . . 4 . . . 2 . 2 . . 22 Ram 1 | . . . . . . . . . . . . . 1 . Kick 1 | . . . . . . . . . . . . . 1 . Crush 35 | . 16 2 6 1 . 4 3 . 1 . . 1 1 . Escape Stasis 25 | . . . . . . . . 21 . . . 4 . . Rewire 1 | . . . . . . . . . . . . 1 . . Trap 6 | . . . . . . . . 3 . . . . 2 1 Miscellaneous . | . . . . . . . . . . . . . . . Route ------- -11/Junkyard -10/Materials (discovered 5 exits: *Mat x3 / [*Min x2]) -10/Mines -9/Materials (discovered 2 exits: *Mat / [*Min]) -9/Mines -9/Exiles (discovered 2 exits: [*Min x2]) -8/Mines -8/Materials -8/Garrison (discovered 3 exits: *Fac x3) -7/Factory -7/Waste -7/Factory -7/Garrison (discovered 3 exits: *Fac x3) -7/Factory (discovered 4 exits: [*Fac x2] / [*Low] / Gar) -7/Garrison History --------- Turn | Location | Event 7 | -11/Junkyard | Discovered new exit (range 15) 96 | -11/Junkyard | Entered Materials 192 | -10/Materials | Discovered new exit (range 11) 262 | -10/Materials | Discovered new exit (range 10) 313 | -10/Materials | Build established: Mutant 500 | -10/Materials | Discovered new exit (range 16) 782 | -10/Materials | Discovered new exit (range 15) 1209 | -10/Materials | Discovered new exit (range 10) 1800 | -10/Materials | Entered Mines 1905 | -10/Mines | Learned Materials emergency access door positions 1994 | -10/Mines | Core integrity fell below 50% 2137 | -10/Mines | Discovered new exit (range 6) 2155 | -10/Mines | Entered Materials 2155 | -9/Materials | Evolved 2 slots: Propulsion x1, Utility x1 2427 | -9/Materials | Repaired Lgt. Treads 2454 | -9/Materials | Repaired Lgt. Treads 2481 | -9/Materials | Repaired Lgt. Treads 2508 | -9/Materials | Repaired Lgt. Cannon 2535 | -9/Materials | Repaired Lgt. Treads 2687 | -9/Materials | Build established: Scavenger-Mutant 2873 | -9/Materials | Discovered new exit (range 8) 2885 | -9/Materials | Destroyed 7 combat bots 3189 | -9/Materials | Build established: Mutant 3427 | -9/Materials | Discovered new exit (range 16) 3522 | -9/Materials | Build established: Scavenger-Mutant 4244 | -9/Materials | Entered Mines 4257 | -9/Mines | Met a Derelict bent on vengeance 4333 | -9/Mines | Core integrity fell below 50% 4488 | -9/Mines | Deemed a non-threat by the Exiles lab entrance 4488 | -9/Mines | Discovered new exit (range 5) 4497 | -9/Mines | Entered Exiles 4521 | -9/Exiles | Discovered new exit (range 15) 4540 | -9/Exiles | Met 8R-AWN 4568 | -9/Exiles | Met EX-HEX 4641 | -9/Exiles | Met EX-DEC 4687 | -9/Exiles | Learned location of Zion (-6) 4715 | -9/Exiles | Met EX-BIN 4740 | -9/Exiles | Aligned with FarCom system 4742 | -9/Exiles | Given EX-Vault access code 4782 | -9/Exiles | Opened EX-Vault 4786 | -9/Exiles | Build established: Mutant 4796 | -9/Exiles | Found Potential Leg 4816 | -9/Exiles | Found Potential Leg 4824 | -9/Exiles | Found Longsword +1 4855 | -9/Exiles | Warned to stay clear of 0b10 Research branches 4962 | -9/Exiles | Discovered new exit (range 10) 4975 | -9/Exiles | Stole two prototypes: Potential Leg, Longsword +1 4975 | -9/Exiles | Entered Mines 5400 | -8/Mines | Discovered new exit (range 8) 5435 | -8/Mines | Entered Materials 5435 | -8/Materials | Evolved 2 slots: Propulsion x1, Utility x1 5650 | -8/Materials | Repaired Hvy. EM Shotgun 6868 | -8/Materials | Garrison activated, responded to threat 6925 | -8/Materials | Identified exit to Garrison 6925 | -8/Materials | Entered Garrison 7388 | -8/Garrison | Triggered checkpoint 7460 | -8/Garrison | Garrison Relay disabled 7626 | -8/Garrison | Triggered checkpoint 7706 | -8/Garrison | Triggered checkpoint 7840 | -8/Garrison | Lost 3 parts (1p1n1u) 7892 | -8/Garrison | Discovered new exit (range 8) 7922 | -8/Garrison | Installed Relay Interface Framework 8164 | -8/Garrison | Triggered checkpoint 8239 | -8/Garrison | Discovered new exit (range 10) 8365 | -8/Garrison | Garrison Relay disabled 8704 | -8/Garrison | Build established: Bothacker-Mutant 8760 | -8/Garrison | Core integrity fell below 50% 8808 | -8/Garrison | Expanded RIF knowledge: Signal Jamming 8860 | -8/Garrison | Discovered new exit (range 10) 8885 | -8/Garrison | Entered Factory 8885 | -7/Factory | Evolved 2 slots: Utility x2 8887 | -7/Factory | FarCom data flow suspended 9508 | -7/Factory | Repaired Arm. Treads? 9617 | -7/Factory | Discovered new exit (range 5) 9656 | -7/Factory | Repaired Corrupted Imp. Heavy Treads? 10294 | -7/Factory | Sucked down chute 10294 | -7/Factory | Entered Waste 10309 | -7/Waste | EMP discharged 10358 | -7/Waste | Spotted C-40 Crusher 10364 | -7/Waste | Spotted C-40 Crusher 10382 | -7/Waste | Spotted C-40 Crusher 10386 | -7/Waste | Spotted C-40 Crusher 10409 | -7/Waste | EMP discharged 10409 | -7/Waste | System corruption reached 10% 10413 | -7/Waste | Spotted C-40 Crusher 10450 | -7/Waste | Discovered new exit (range 16) 10492 | -7/Waste | Spotted C-40 Crusher 10509 | -7/Waste | EMP discharged 10558 | -7/Waste | Destroyed C-40 Crusher 10609 | -7/Waste | EMP discharged 10609 | -7/Waste | System corruption reached 30% 10673 | -7/Waste | Entered Factory 10909 | -7/Factory | Identified exit to Garrison 10909 | -7/Factory | Entered Garrison 11053 | -7/Garrison | Garrison Relay disabled 11145 | -7/Garrison | Expanded RIF knowledge: Robot Detection 11378 | -7/Garrison | Triggered checkpoint 11432 | -7/Garrison | Lost 3 parts (2n1u) 11454 | -7/Garrison | Garrison Relay disabled 11568 | -7/Garrison | Discovered new exit (range 10) 11769 | -7/Garrison | Triggered checkpoint 11800 | -7/Garrison | Destroyed 8 combat bots 11802 | -7/Garrison | Lost 3 parts (1n2w) 11956 | -7/Garrison | Garrison Relay disabled 12093 | -7/Garrison | Discovered new exit (range 13) 12105 | -7/Garrison | Discovered new exit (range 45) 12105 | -7/Garrison | Discovered new exit (range 13) 12105 | -7/Garrison | Discovered new exit (range 81) 12242 | -7/Garrison | Learned Factory security intel 12257 | -7/Garrison | Core integrity fell below 50% 12262 | -7/Garrison | Triggered checkpoint 12470 | -7/Garrison | Entered Factory 12972 | -7/Factory | Discovered new exit (range 4) 13270 | -7/Factory | First assault squad dispatched 13274 | -7/Factory | Discovered new exit (range 6) 13421 | -7/Factory | Discovered new exit (range 10) 13469 | -7/Factory | Cargo convoy interrupted 13565 | -7/Factory | Identified exit to Garrison 13565 | -7/Factory | Entered Garrison 13575 | -7/Garrison | Triggered checkpoint 13615 | -7/Garrison | Core integrity fell below 20% 13751 | -7/Garrison | Destroyed by G-47 Trooper with Particle Gun Last Messages --------------- 13638_ A-02 Transporter destroyed. 13639_ Acquired 56 matter. 13645_ Storage Shell breached. 13649_ BCYJBBAQL%T5J 13686_ Acquired EM Surge Trap. 13687_ System corrupted: Substantial component data lost. 13689_ Acquired EM Surge Trap. 13702_ System corrupted: Matter fused (-6). 13703_ Storage Shell breached. 13722_ System corrupted: Component data lost. 13738_ Critical hit (Burn: +37). 13740_ PYFWBZVH,5DLKQUFPQPFK8TYX03X=YOFPS<|D1XF 13742_ Dropped EM Surge Trap. 13742_ Installed EM Surge Trap. 13743_ Triggered Hellfire Trap. 13743_ An explosion rips through the floor. 13748_ G-47 Trooper Aluminum Leg severed. Map ----- +----------------------------------------------------+ | ?????????????????????????????????????????????????? | | ?????????????????????????????????????????????????? | | ?????????????????????????????????????????????????? | | ?????????????????????????????????????????????????? | | ?????????????????????????????????????????????????? | | ?????????????????????????????????????????????????? | | ?????????????????????????????????????????????????? | | ?????????????????????????????????????????????????? | | ???????????????# ??????????????????????????????? | | ???????????????# ??????????????????????????????? | | ???????????????# ??????????????????????????????? | | ???????????????# ??????????????????????????????? | | ???????????????# ?????????????????????????????? | | ???????????????# #?????????????????????????????? | | ???????????????# #?????????????????????????????? | | ???????????????#g #?###########?????????????????? | | ???????????????# #?# " &&"?????????????????? | | ???????????????# #?# " " "&&"?????????????????? | | ???????????????# ### """ "" "#????????????????? | | ???????????????# ## ![&= #????????????????? | | ?????????????### ## [&&# "" #????????????????? | | ?????????????# =*=& # ^"& #????????????????? | | ?????????????# **&&# " #????????????????? | | ?????????????# ##&&!!#= "" #????????????????? | | ?????????????### ##!&&& #????????????????? | | ???????????????# ###* "@ " #????????????????? | | ???????????????# #?# "g& "#????????????????? | | ???????????????# #?# "& &"?????????????????? | | ???????????????# #?###########?????????????????? | | ???????????????# #?????????????????????????????? | | ???????????????# #?????????????????????????????? | | ???????????????# #?????????????????????????????? | | ???????????????# ###???????????????????????????? | | ???????????????# #???????????????????????????? | | ???????????????# #???????????????????????????? | | ???????????????# #???????????????????????????? | | ???????????????#######???????????????????????????? | | ?????????????????????????????????????????????????? | | ?????????????????????????????????????????????????? | | ?????????????????????????????????????????????????? | | ?????????????????????????????????????????????????? | | ?????????????????????????????????????????????????? | | ?????????????????????????????????????????????????? | | ?????????????????????????????????????????????????? | | ?????????????????????????????????????????????????? | | ?????????????????????????????????????????????????? | | ?????????????????????????????????????????????????? | | | | | | | +----------------------------------------------------+ Best States ------------- Heat Dissipation 38 Coolant Potential 80 Energy Generation 23 Energy Capacity 500 Matter Stores 500 Matter Capacity 500 Sight Range 16 Terrain Scan Density 10 ECM Strength 1 Armor Coverage 225 Resistance: KI 25 Evasion (%) 40 Targeting Accuracy 5 Recoil Reduction 4 Particle Charging 15 Offensive Hacking 10 Relay Coupler Types 1 Relay Coupler Value 29 Item Schematics ----------------- Huge Storage Unit | -10/Materials | Hacked Propulsion Shielding | -9/Materials | Scanalyzed Transport Network Coupler | -9/Materials | Scanalyzed Datajack | -9/Materials | Scanalyzed ECM Suite | -9/Materials | Scanalyzed Hvy. Ion Engine | -9/Materials | Scanalyzed Lrg. Matter Pod | -9/Materials | Scanalyzed Plasma Cutter | -9/Materials | Hacked Imp. Utility Shielding | -8/Materials | Hacked Enh. Optical Array | -7/Factory | Hacked Robot Schematics ------------------ None Fabricated ------------ Nothing Alien Tech Used ----------------- None Achievements -------------- None Challenges ------------ None Game ------ Seed StructuralWeaponGravjet Manual? 0 Play Time 01:08:02 Cumulative 686.5 hours Start 2023.03.07 @ 09:31:48 End 2023.03.07 @ 10:40:24 Sessions 1 Manual Loads 0 Difficulty Rogue Special Mode None Game No. 613 Rogue 613 Adventurer 0 Explorer 0 Win Type - Total 33 Types 14/2/9/2/0/0/4/1/1 Lore% 96 Gallery% 95 Achievement% 82 Wizard Run 0 Options --------- ASCII 0 Keyboard 0 Movement Numpad Keybinds 0 Fullscreen 1 Font 18/Smallcaps Map View 76x50 Tactical HUD 1 Map Filters NONE Filters NONE Steam 1 RUN: 31f0b6f9-61b6-4fa8-badd-72f1d5aa06a7